bitfinex/quotes_SOLUSD_20251206
["timestamp","ask_amount","ask_price","bid_price","bid_amount"]
[1765032434904,12.1041072,133.93,133.89,8.14873759]
[1765032435483,3.8641072,133.92,133.87,7.46981486]
[1765032435786,3.8641072,133.92,133.88,7.4692047]
[1765032435981,3.8641072,133.92,133.88,8.1492047]
[1765032436292,3.2541072,133.92,133.89,8.14878354]
[1765032437904,11.4941072,133.93,133.9,0.68]
[1765032438282,3.2541072,133.92,133.89,8.14878354]
[1765032438483,3.2541072,133.9,133.87,8.14946631]
[1765032438714,3.2541072,133.9,133.88,0.68]
[1765032438891,3.2541072,133.91,133.88,8.14934574]
[1765032439288,3.2541072,133.91,133.89,0.68]
[1765032439897,11.4941072,133.93,133.89,8.14873742]
[1765032440303,11.4941072,133.93,133.9,0.68]
[1765032441315,11.4941072,133.93,133.88,8.14928644]
[1765032441316,3.2541072,133.91,133.88,8.14928644]
[1765032441501,3.2541072,133.91,133.89,0.68]
[1765032442012,3.2541072,133.92,133.89,8.14877548]
[1765032443716,3.2541072,133.92,133.9,0.68]
[1765032446413,3.2541072,133.92,133.89,7.46861958]
[1765032446592,3.2541072,133.92,133.89,8.14861958]
[1765032447490,3.2541072,133.92,133.89,0.68]
[1765032447912,3.2541072,133.91,133.88,7.46937556]
[1765032448101,3.2541072,133.91,133.89,0.68]
[1765032448938,3.2541072,133.91,133.89,7.46880729]
[1765032449218,3.2541072,133.91,133.89,8.14880729]
[1765032450012,3.2541072,133.91,133.89,7.46880729]
[1765032450311,3.2541072,133.91,133.9,0.68]
[1765032450704,3.2541072,133.92,133.9,0.68]
[1765032453118,3.2541072,133.91,133.88,8.14933493]
[1765032453419,15.70691022,133.93,133.88,0.68]
[1765032453420,3.2541072,133.9,133.88,0.68]
[1765032453716,3.2541072,133.9,133.87,8.14978014]
[1765032453912,3.2541072,133.9,133.87,7.46978014]
[1765032454103,3.2541072,133.9,133.88,0.68]
[1765032455516,8.07737394,133.92,133.88,11.40334303]
[1765032455517,3.2541072,133.92,133.88,11.40334303]
[1765032456128,3.2541072,133.92,133.89,0.68]
[1765032456421,5.07678515,133.92,133.89,8.14842779]
[1765032457120,126.77436497,133.95,133.9,5.75678515]
[1765032457319,13.92678515,133.94,133.91,0.68]
[1765032457621,5.07678515,133.93,133.91,0.68]
[1765032458511,5.07678515,133.93,133.91,8.14764807]
[1765032459099,5.07678515,133.93,133.91,0.68]
[1765032459406,4.57678515,133.93,133.91,0.68]
[1765032459606,13.31678515,133.94,133.91,0.68]
[1765032459807,13.92678515,133.94,133.91,0.68]
[1765032460720,13.31678515,133.94,133.91,8.14762395]
[1765032462020,13.31678515,133.94,133.92,0.69]
[1765032462198,8.24,133.94,133.92,0.69]
[1765032463822,13.92678515,133.94,133.9,0.69]
[1765032464125,13.92678515,133.94,133.89,26.14033104]
[1765032464126,13.92678515,133.94,133.91,0.69]
[1765032465626,13.92678515,133.94,133.89,8.15870343]
[1765032465627,5.68678515,133.93,133.89,8.15870343]
[1765032465800,5.07678515,133.92,133.89,8.15870343]
[1765032466001,5.68678515,133.92,133.89,0.69]
[1765032466620,5.68678515,133.92,133.89,8.15871403]
[1765032467231,8.24,133.91,133.89,8.15871403]
[1765032467529,8.24,133.91,133.89,7.46871403]
[1765032467711,8.24,133.91,133.9,0.69]
[1765032467913,8.24,133.91,133.89,8.15871403]
[1765032471010,8.24,133.91,133.89,8.13871403]
[1765032471332,8.24,133.91,133.9,0.67]
[1765032473030,8.24,133.91,133.89,8.13871403]
[1765032473231,8.24,133.91,133.9,8.13825989]
[1765032473622,8.24,133.91,133.9,7.46825989]
[1765032473934,8.24,133.91,133.9,8.13825989]
[1765032474143,111.24,133.93,133.9,8.13825989]
[1765032474324,111.24,133.93,133.91,0.67]
[1765032475537,8.24,133.93,133.91,8.13721549]
[1765032480413,8.24,133.93,133.9,8.13825989]
[1765032480614,13.92678515,133.93,133.9,8.13825989]
[1765032480827,5.07678515,133.92,133.9,0.67]
[1765032481025,5.68678515,133.92,133.88,0.67]
[1765032481325,5.68678515,133.92,133.89,0.67]
[1765032481521,5.68678515,133.92,133.88,0.67]
[1765032481718,5.07678515,133.9,133.87,7.4695756]
[1765032482023,13.31678515,133.9,133.87,7.4695756]
[1765032482250,13.92678515,133.9,133.87,8.1395756]
[1765032482428,13.31678515,133.9,133.87,8.1395756]
[1765032483445,5.07678515,133.89,133.87,8.1395756]
[1765032485848,5.07678515,133.89,133.87,0.67]
[1765032486048,5.68678515,133.89,133.86,7.47047539]
[1765032486253,5.07678515,133.89,133.86,8.14047539]
[1765032488020,5.07678515,133.89,133.8,18.68348605]
[1765032488021,5.07678515,133.87,133.8,18.68348605]
[1765032488252,5.07678515,133.84,133.81,8.1431541]
[1765032488736,5.07678515,133.84,133.82,0.67]
[1765032489068,5.07678515,133.83,133.81,0.69]
[1765032489216,5.07678515,133.83,133.82,0.69]
[1765032490158,5.07678515,133.83,133.82,8.16272455]
[1765032490459,5.07678515,133.83,133.8,19.37348605]
[1765032490632,5.07678515,133.83,133.81,0.69]
[1765032490961,5.07678515,133.83,133.81,8.16278118]
[1765032491647,5.07678515,133.82,133.79,8.16438266]
[1765032491860,5.07678515,133.81,133.8,0.69]
[1765032492046,5.07678515,133.81,133.77,7.47542549]
[1765032492354,32.02150894,133.83,133.77,8.16542549]
[1765032492355,5.07678515,133.78,133.77,8.16542549]
[1765032493145,5.07678515,133.79,133.77,8.16542549]
[1765032495558,0.61,133.81,133.77,8.16542549]
[1765032495730,5.07678515,133.79,133.77,8.16542549]
[1765032496424,5.07678515,133.8,133.77,8.16542549]
[1765032496750,5.07678515,133.79,133.77,7.47542549]
[1765032497047,0.61,133.81,133.77,8.16542549]
[1765032497230,5.07678515,133.8,133.77,8.16542549]
[1765032498256,5.07678515,133.8,133.78,0.69]
[1765032498428,5.07678515,133.8,133.77,8.16542549]
[1765032498755,5.07678515,133.8,133.78,0.69]
[1765032498970,5.07678515,133.82,133.78,5.76678515]
[1765032499129,24.548864,133.83,133.79,5.76678515]
[1765032499333,29.62564915,133.83,133.79,5.76678515]
[1765032499537,29.62564915,133.83,133.8,0.69]
[1765032499850,8.24,133.83,133.8,5.76678515]
[1765032500255,8.24,133.83,133.81,0.69]
[1765032500959,5.07678515,133.84,133.81,0.69]
[1765032501164,13.92678515,133.84,133.8,8.16361524]
[1765032501457,5.07678515,133.83,133.8,8.16361524]
[1765032501633,5.07678515,133.83,133.8,0.69]
[1765032501836,5.07678515,133.83,133.8,8.16373658]
[1765032503164,13.92678515,133.84,133.81,0.69]
[1765032506774,5.07678515,133.83,133.81,0.69]
[1765032507460,8.85,133.84,133.81,0.69]
[1765032507664,5.07678515,133.83,133.81,0.69]
[1765032508182,5.68678515,133.83,133.8,7.47373658]
[1765032508366,5.68678515,133.83,133.8,8.16373658]
[1765032510257,5.07678515,133.82,133.8,8.16373658]
[1765032510551,118.71163135,133.84,133.8,8.16373658]
[1765032510552,119.32163135,133.84,133.8,8.16373658]
[1765032510757,5.07678515,133.83,133.8,8.16373658]
[1765032511944,111.85,133.84,133.8,8.16373658]
[1765032512176,5.07678515,133.83,133.8,8.16373658]
[1765032513456,111.85,133.84,133.8,8.16373658]
[1765032513651,5.07678515,133.83,133.8,8.16373658]
[1765032514168,5.68678515,133.83,133.8,0.69]
[1765032515769,5.68678515,133.83,133.8,8.1637465]
[1765032516274,5.07678515,133.83,133.81,0.69]
[1765032516454,5.07678515,133.83,133.8,8.1637465]
[1765032518369,3.25361461,133.83,133.8,8.1637465]
[1765032519686,3.25361461,133.83,133.81,0.68]
[1765032519986,114.49361461,133.84,133.81,0.68]
[1765032520371,115.10361461,133.84,133.81,0.68]
[1765032520974,111.24,133.84,133.81,0.68]
[1765032521165,115.10361461,133.84,133.81,0.68]
[1765032521753,114.49361461,133.84,133.81,0.68]
[1765032522055,115.10361461,133.84,133.81,0.68]
[1765032522260,114.49361461,133.84,133.81,0.68]
[1765032522672,115.10361461,133.84,133.81,0.68]
[1765032522869,115.10361461,133.84,133.77,26.16408102]
[1765032523051,115.10361461,133.84,133.8,3.93361461]
[1765032523574,115.10361461,133.84,133.8,3.25361461]
[1765032523876,115.10361461,133.84,133.81,0.68]
[1765032524175,114.49361461,133.84,133.8,10.72740935]
[1765032524362,0.61,133.83,133.8,11.40740935]
[1765032524566,115.10361461,133.84,133.8,11.40740935]
[1765032525066,115.10361461,133.84,133.8,8.15379474]
[1765032525270,115.10361461,133.84,133.8,11.40740935]
[1765032526290,0.61,133.83,133.8,11.40733198]
[1765032526497,3.86361461,133.83,133.8,8.15371737]
[1765032527365,114.49361461,133.84,133.81,0.68]
[1765032527670,115.10361461,133.84,133.81,0.68]
[1765032528783,3.25361461,133.83,133.81,0.68]
[1765032529186,3.25361461,133.83,133.8,7.47371737]
[1765032529370,3.25361461,133.83,133.8,8.15371737]
[1765032530085,3.25361461,133.83,133.81,0.68]
[1765032530898,3.25361461,133.83,133.81,8.15323073]
[1765032533294,114.49361461,133.84,133.81,8.15323073]
[1765032533495,115.10361461,133.84,133.81,8.15323073]
[1765032538510,111.85,133.84,133.81,8.15323073]
[1765032539008,115.10361461,133.84,133.81,8.15323073]
[1765032542191,111.85,133.84,133.81,8.15323073]
[1765032542504,115.10361461,133.84,133.81,8.15323073]
[1765032542681,3.25361461,133.82,133.8,7.47381073]
[1765032542885,0.61,133.82,133.8,7.47381073]
[1765032543084,8.85,133.82,133.8,7.47381073]
[1765032543284,8.24,133.82,133.8,7.47381073]
[1765032543816,8.24,133.82,133.8,8.19381073]
[1765032547707,8.24,133.82,133.8,0.72]
[1765032549910,8.24,133.82,133.8,8.19379285]
[1765032550316,11.49361461,133.82,133.8,8.19379285]
[1765032551899,11.49361461,133.82,133.81,0.67]
[1765032552313,11.49361461,133.82,133.8,0.67]
[1765032553724,3.86361461,133.81,133.78,8.14487022]
[1765032554107,12.10361461,133.82,133.79,8.14434821]
[1765032554614,11.49361461,133.82,133.79,8.14434821]
[1765032554815,11.49361461,133.82,133.79,7.47434821]
[1765032555022,11.49361461,133.82,133.8,0.67]
[1765032555618,3.25361461,133.81,133.77,3.25361461]
[1765032555817,3.25361461,133.81,133.79,0.67]
[1765032556908,3.25361461,133.81,133.79,8.14439876]
[1765032559927,12.10361461,133.82,133.79,8.14439876]
[1765032560911,11.49361461,133.82,133.78,7.47495888]
[1765032561222,11.49361461,133.82,133.8,0.67]
[1765032561922,11.49361461,133.82,133.78,7.47495888]
[1765032561923,12.10361461,133.82,133.79,0.67]
[1765032562127,3.25361461,133.81,133.79,8.14426893]
[1765032562622,3.86361461,133.81,133.79,7.47426893]
[1765032563121,3.86361461,133.81,133.78,8.14455589]
[1765032563321,3.25361461,133.81,133.78,8.14455589]
[1765032563513,3.25361461,133.8,133.78,0.67]
[1765032563718,3.86361461,133.8,133.77,8.14538023]
[1765032563905,3.25361461,133.8,133.78,0.67]
[1765032565520,3.25361461,133.79,133.78,0.67]
[1765032566703,3.25361461,133.8,133.78,0.67]
[1765032570828,3.25361461,133.8,133.77,0.67]
[1765032571025,3.25361461,133.8,133.75,10.73025012]
[1765032571026,3.25361461,133.8,133.78,0.67]
[1765032571735,3.25361461,133.8,133.75,10.73025012]
[1765032571736,12.10361461,133.79,133.75,7.47663551]
[1765032571937,3.25361461,133.78,133.75,8.14663551]
[1765032572236,3.86361461,133.78,133.75,8.14663551]
[1765032572832,3.25361461,133.78,133.75,8.14663551]
[1765032573832,3.25361461,133.78,133.76,0.67]
[1765032574034,3.25361461,133.78,133.75,8.14663551]
[1765032576151,3.86361461,133.78,133.75,8.14663551]
[1765032577814,106.25361461,133.8,133.76,3.92361461]
[1765032578014,31.69380226,133.84,133.75,7.47663551]
[1765032578015,103.61,133.86,133.79,3.25361461]
[1765032578238,11.49361461,133.85,133.8,3.92361461]
[1765032578425,12.10361461,133.85,133.8,3.92361461]
[1765032578625,3.86361461,133.84,133.81,0.67]
[1765032578836,3.25361461,133.82,133.77,8.24]
[1765032579029,3.25361461,133.82,133.79,0.72]
[1765032579364,3.25361461,133.83,133.79,3.97361461]
[1765032579720,3.25361461,133.83,133.8,0.72]
[1765032580324,5.08355996,133.83,133.8,0.72]
[1765032582218,5.08355996,133.81,133.78,0.72]
[1765032583122,5.69355996,133.8,133.76,8.19607655]
[1765032583321,5.08355996,133.79,133.76,8.19607655]
[1765032583722,5.08355996,133.79,133.77,0.72]
[1765032587847,5.08355996,133.79,133.77,8.19541228]
[1765032589131,5.08355996,133.79,133.77,0.72]
[1765032592429,5.08355996,133.79,133.77,8.19537963]
[1765032592754,13.32355996,133.8,133.77,8.19537963]
[1765032594146,13.32355996,133.8,133.78,0.72]
[1765032594530,5.08355996,133.79,133.78,0.72]
[1765032600642,13.32355996,133.8,133.78,0.72]
[1765032602149,8.24,133.8,133.78,0.72]
[1765032602340,13.32355996,133.8,133.78,0.72]
[1765032602528,5.08355996,133.79,133.77,0.72]
[1765032604050,5.69355996,133.79,133.76,0.72]
[1765032604361,13.32355996,133.78,133.74,7.67708258]
[1765032604565,13.93355996,133.78,133.75,0.72]
[1765032604742,5.08355996,133.77,133.75,0.72]
[1765032605137,13.32355996,133.78,133.75,0.72]
[1765032605851,5.08355996,133.77,133.75,0.72]
[1765032608552,5.08355996,133.77,133.74,7.67708258]
[1765032608776,5.08355996,133.76,133.74,8.39708258]
[1765032608944,5.08355996,133.76,133.74,8.34708258]
[1765032609261,13.32355996,133.76,133.74,0.87]
[1765032610164,5.08355996,133.75,133.74,0.2]
[1765032610757,5.08355996,133.75,133.74,0.87]
[1765032610958,5.08355996,133.75,133.74,0.2]
[1765032611159,5.08355996,133.75,133.74,0.87]
[1765032611357,5.08355996,133.75,133.74,0.2]
[1765032612565,21.98014039,133.75,133.74,0.2]
[1765032613770,21.98014039,133.75,133.68,0.2]
[1765032613771,16.308864,133.7,133.68,0.2]
[1765032613978,13.32355996,133.69,133.68,0.2]
[1765032614483,13.93355996,133.69,133.68,0.2]
[1765032615468,30.2234959,133.69,133.68,0.2]
[1765032616261,8.80994492,133.68,133.67,0.2]
[1765032616459,46.53291944,133.68,133.67,0.2]
[1765032617274,46.53291944,133.68,133.66,0.2]
[1765032617275,30.22405544,133.68,133.66,0.2]
[1765032617567,30.22405544,133.68,133.64,0.2]
[1765032617568,25.11880892,133.65,133.64,0.2]
[1765032617752,38.44236888,133.65,133.64,0.2]
[1765032617950,39.05236888,133.65,133.64,0.2]
[1765032618361,46.53459858,133.65,133.64,0.2]
[1765032618552,8.80994492,133.64,133.63,0.2]
[1765032618748,19.58706484,133.64,133.63,0.2]
[1765032619163,25.11880892,133.62,133.61,0.2]
[1765032619379,38.44236888,133.62,133.61,0.2]
[1765032619590,39.05236888,133.62,133.61,0.2]
[1765032620458,46.53627847,133.62,133.61,0.2]
[1765032624468,65.24605245,133.62,133.54,0.67]
[1765032624669,5.08355996,133.56,133.54,0.67]
[1765032624867,5.08355996,133.55,133.54,0.67]
[1765032627886,5.08355996,133.56,133.54,0.67]
[1765032630766,103.0,133.57,133.54,8.15826851]
[1765032630985,8.24,133.57,133.54,13.24182847]
[1765032631183,8.0994037,133.65,133.55,0.67]
[1765032631510,5.08355996,133.65,133.6,5.08355996]
[1765032631801,8.26,133.64,133.56,16.308864]
[1765032632012,13.34355996,133.64,133.59,5.08355996]
[1765032632376,13.34355996,133.64,133.6,0.67]
[1765032633867,8.26,133.64,133.6,8.1548055]
[1765032634071,13.34355996,133.64,133.6,8.1548055]
[1765032634291,5.08355996,133.63,133.55,18.7195338]
[1765032634492,5.08355996,133.62,133.57,12.56976504]
[1765032634811,13.34355996,133.61,133.58,0.67]
[1765032635705,8.26,133.61,133.58,8.1560651]
[1765032636198,8.26,133.61,133.59,0.67]
[1765032638682,8.26,133.61,133.59,8.15525151]
[1765032639080,8.26,133.61,133.6,0.72]
[1765032644795,8.26,133.61,133.57,18.71656516]
[1765032644796,11.52373151,133.61,133.59,0.72]
[1765032644998,3.26373151,133.6,133.57,8.20671108]
[1765032645577,12.13373151,133.61,133.57,8.20671108]
[1765032645993,12.13373151,133.61,133.58,0.72]
[1765032646789,3.26373151,133.6,133.58,0.72]
[1765032649906,11.52373151,133.61,133.58,0.72]
[1765032650224,12.13373151,133.61,133.58,0.72]
[1765032650930,11.52373151,133.61,133.58,0.72]
[1765032653101,106.26373151,133.62,133.58,11.46966234]
[1765032653420,8.24,133.61,133.58,11.46966234]
[1765032653625,8.24,133.61,133.59,0.72]
[1765032653995,11.50373151,133.61,133.59,0.72]
[1765032654401,11.50373151,133.61,133.58,0.72]
[1765032654627,11.50373151,133.61,133.59,0.72]
[1765032660734,18.98824216,133.61,133.59,0.72]
[1765032661545,15.72451065,133.61,133.59,0.72]
[1765032661716,103.0,133.62,133.59,0.72]
[1765032661921,8.24,133.61,133.59,0.72]
[1765032662337,8.24,133.61,133.59,8.20556811]
[1765032662724,8.24,133.61,133.6,0.71]
[1765032663129,103.0,133.62,133.6,8.19502994]
[1765032663331,111.24,133.62,133.6,8.19502994]
[1765032663514,111.24,133.62,133.61,0.71]
[1765032669344,103.0,133.62,133.61,11.45820123]
[1765032670249,103.0,133.62,133.61,8.19446972]
[1765032673653,11.50373151,133.64,133.61,8.19446972]
[1765032673952,11.50373151,133.64,133.62,0.72]
[1765032674751,11.50373151,133.64,133.61,8.20446972]
[1765032675072,12.11373151,133.64,133.61,8.20446972]
[1765032675230,3.26373151,133.62,133.6,0.72]
[1765032675432,11.50373151,133.62,133.6,0.72]
[1765032681758,8.24,133.62,133.6,0.72]
[1765032684454,11.50373151,133.62,133.58,7.48606236]
[1765032684677,8.24,133.62,133.59,0.72]
[1765032684863,11.50373151,133.62,133.59,0.72]
[1765032685655,3.26373151,133.6,133.57,7.48664278]
[1765032685864,0.61,133.61,133.56,8.2071455]
[1765032685865,11.50373151,133.59,133.56,8.2071455]
[1765032686066,11.50373151,133.59,133.55,7.48780417]
[1765032686067,3.26373151,133.58,133.55,7.48780417]
[1765032686365,11.50373151,133.57,133.54,8.2082544]
[1765032686659,3.26373151,133.55,133.54,0.72]
[1765032686854,8.85,133.57,133.54,0.72]
[1765032686855,3.26373151,133.56,133.54,0.72]
[1765032687734,3.26373151,133.56,133.54,8.2083041]
[1765032689458,8.24,133.57,133.55,0.72]
[1765032689656,106.26373151,133.6,133.55,3.98373151]
[1765032689959,8.24,133.59,133.56,3.26373151]
[1765032690138,8.24,133.59,133.57,3.26373151]
[1765032690341,8.24,133.61,133.58,3.26373151]
[1765032690534,0.61,133.64,133.6,3.26373151]
[1765032690535,16.308864,133.62,133.6,3.26373151]
[1765032690768,8.24,133.63,133.6,3.26373151]
[1765032691068,8.24,133.63,133.61,3.98373151]
[1765032691552,8.24,133.63,133.62,0.72]
[1765032692557,3.26373151,133.69,133.62,27.77631152]
[1765032692763,3.26373151,133.69,133.65,3.26373151]
[1765032692961,11.50373151,133.69,133.66,0.72]
[1765032693356,12.11373151,133.69,133.66,0.72]
[1765032694144,11.50373151,133.69,133.66,0.72]
[1765032694374,12.11373151,133.69,133.66,0.72]
[1765032694572,3.26373151,133.67,133.63,3.98373151]
[1765032694786,3.26373151,133.67,133.64,0.72]
[1765032695568,0.61,133.68,133.64,8.20275394]
[1765032695868,3.26373151,133.68,133.64,11.46648545]
[1765032696075,3.26373151,133.68,133.65,0.72]
[1765032698668,3.26373151,133.67,133.63,10.74707726]
[1765032698874,3.87373151,133.67,133.63,10.74707726]
[1765032699065,3.87373151,133.67,133.64,0.7]
[1765032699775,3.26373151,133.65,133.62,8.18381041]
[1765032702576,5.09749924,133.65,133.62,8.18381041]
[1765032703475,128.158864,133.66,133.63,0.7]
[1765032705475,135.03056049,133.66,133.61,13.28184413]
[1765032705682,0.61,133.65,133.61,8.18434489]
[1765032706574,0.61,133.65,133.62,0.7]
[1765032707280,135.64056049,133.66,133.62,0.7]
[1765032708079,0.61,133.65,133.61,0.7]
[1765032708259,0.61,133.65,133.62,0.7]
[1765032709301,135.64056049,133.66,133.62,0.7]
[1765032710879,135.03056049,133.66,133.62,0.7]
[1765032711083,0.61,133.65,133.62,0.7]
[1765032712770,135.03056049,133.66,133.62,0.7]
[1765032712966,135.64056049,133.66,133.62,0.7]
[1765032713180,135.64056049,133.66,133.62,8.1839005]
[1765032713379,135.64056049,133.66,133.63,0.7]
[1765032713575,135.64056049,133.66,133.62,0.7]
[1765032713883,135.64056049,133.66,133.63,0.7]
[1765032715589,135.64056049,133.66,133.59,18.71284645]
[1765032715590,9.41994492,133.65,133.58,0.7]
[1765032715894,8.24,133.64,133.59,0.7]
[1765032716784,23.79056049,133.66,133.62,7.48386424]
[1765032716785,24.548864,133.66,133.62,7.48386424]
[1765032716986,8.24,133.66,133.6,42.50593701]
[1765032717360,8.24,133.66,133.61,0.7]
[1765032718389,8.24,133.66,133.62,7.48390959]
[1765032718775,8.24,133.66,133.63,0.69]
[1765032720073,103.0,133.68,133.63,0.69]
[1765032720470,0.61,133.7,133.64,26.18976353]
[1765032720471,8.24,133.7,133.64,26.18976353]
[1765032720864,8.24,133.7,133.65,0.69]
[1765032722771,8.24,133.7,133.66,7.4816699]
[1765032723193,8.24,133.7,133.67,0.69]
[1765032723394,103.0,133.71,133.67,0.69]
[1765032723589,111.24,133.71,133.67,0.69]
[1765032723788,111.24,133.71,133.67,8.17074083]
[1765032723990,8.24,133.71,133.67,8.17074083]
[1765032724295,8.24,133.71,133.68,0.69]
[1765032725967,8.24,133.71,133.68,8.17011631]
[1765032726388,8.24,133.71,133.69,0.69]
[1765032727070,8.08728506,133.74,133.69,0.69]
[1765032727298,8.24,133.73,133.69,0.69]
[1765032727992,0.61,133.72,133.69,0.69]
[1765032728378,0.61,133.72,133.67,8.1710521]
[1765032728896,0.61,133.72,133.68,0.69]
[1765032730208,0.61,133.72,133.68,7.48040497]
[1765032730376,8.08855551,133.72,133.68,0.7]
[1765032731376,111.24,133.73,133.68,0.7]
[1765032731883,111.24,133.73,133.68,26.88188898]
[1765032732289,111.24,133.73,133.69,0.7]
[1765032732492,0.61,133.72,133.69,0.7]
[1765032732797,111.24,133.73,133.69,0.7]
[1765032733793,111.24,133.73,133.69,8.17997151]
[1765032734212,111.24,133.73,133.7,0.7]
[1765032736697,111.24,133.73,133.7,8.1791384]
[1765032736986,103.0,133.73,133.7,8.1791384]
[1765032737236,103.0,133.73,133.71,0.7]
[1765032738182,103.0,133.73,133.71,8.17858114]
[1765032738378,0.61,133.72,133.68,19.40116552]
[1765032738678,0.61,133.72,133.68,0.7]
[1765032739008,8.85,133.72,133.69,0.7]
[1765032740515,8.85,133.72,133.68,7.48047763]
[1765032740706,8.24,133.72,133.69,0.7]
[1765032741502,8.85,133.72,133.69,0.7]
[1765032746785,8.24,133.72,133.69,0.7]
[1765032746984,8.24,133.72,133.69,8.17988182]
[1765032747197,8.24,133.72,133.7,0.7]
[1765032748695,103.0,133.73,133.7,8.17925173]
[1765032749090,103.0,133.73,133.71,0.7]
[1765032751906,103.0,133.73,133.7,7.47925173]
[1765032752105,103.0,133.73,133.7,8.17925173]
[1765032752507,0.61,133.72,133.68,8.18019254]
[1765032752811,8.85,133.72,133.66,7.48112596]
[1765032753012,8.85,133.72,133.66,8.18112596]
[1765032753318,8.08887218,133.71,133.66,8.18112596]
[1765032753493,8.24,133.7,133.66,8.18112596]
[1765032753693,8.85,133.7,133.67,0.7]
[1765032754313,8.24,133.7,133.67,8.18100234]
[1765032754690,8.24,133.7,133.68,0.7]
[1765032754882,23.88597071,133.75,133.68,0.7]
[1765032755191,8.95,133.75,133.68,0.7]
[1765032756300,8.34,133.75,133.7,26.17801046]
[1765032756808,8.34,133.75,133.71,0.7]
[1765032757230,0.1,133.75,133.71,0.7]
[1765032758410,0.1,133.75,133.72,7.47831289]
[1765032758910,0.1,133.75,133.73,0.7]
[1765032760515,0.1,133.75,133.74,7.47719455]
[1765032760889,0.1,133.75,133.74,8.19719455]
[1765032761094,0.1,133.75,133.74,7.47719455]
[1765032761290,0.1,133.75,133.74,0.72]
[1765032762920,0.1,133.75,133.74,8.19719455]
[1765032768836,0.1,133.75,133.74,17.00713947]
[1765032769311,1e-08,133.76,133.75,25.11880892]
[1765032769505,1e-08,133.76,133.75,25.83880892]
[1765032770115,0.1,133.82,133.79,8.80994492]
[1765032770327,0.1,133.82,133.8,8.24]
[1765032770524,0.1,133.82,133.81,0.72]
[1765032771933,0.1,133.82,133.81,8.19328301]
[1765032773011,0.1,133.82,133.81,33.31209193]
[1765032773012,1e-08,133.82,133.81,33.31209193]
[1765032773928,1e-08,133.82,133.81,41.55209193]
[1765032774427,1e-08,133.82,133.81,25.24322793]
[1765032774627,0.1,133.85,133.84,16.308864]
[1765032775003,0.1,133.85,133.84,17.028864]
[1765032775437,0.1,133.85,133.84,25.83880892]
[1765032775816,0.1,133.85,133.84,33.31041681]
[1765032778215,1e-08,133.85,133.84,33.31041681]
[1765032778615,1e-08,133.85,133.84,56.10864692]
[1765032778823,1e-08,133.86,133.84,58.37874222]
[1765032779118,1e-08,133.86,133.85,8.93]
[1765032780238,1e-08,133.86,133.85,8.16104968]
[1765032780931,1e-08,133.86,133.85,7.47104968]
[1765032781123,1e-08,133.86,133.84,16.998864]
[1765032781435,1e-08,133.86,133.81,16.308864]
[1765032781436,0.66000001,133.86,133.82,0.69]
[1765032782227,0.66000001,133.86,133.83,7.47207515]
[1765032782427,0.66000001,133.86,133.82,0.69]
[1765032782428,0.66000001,133.86,133.82,7.47261189]
[1765032782611,8.1305838,133.86,133.81,7.47280968]
[1765032782814,8.1305838,133.86,133.8,7.47373569]
[1765032783139,0.66,133.85,133.8,7.47373569]
[1765032783316,0.66,133.85,133.8,8.16373569]
[1765032783844,0.66,133.85,133.81,7.47321594]
[1765032784538,0.66000001,133.86,133.82,0.69]
[1765032784927,0.66,133.85,133.8,26.84844543]
[1765032785342,0.66,133.85,133.81,0.69]
[1765032785824,0.66,133.85,133.8,8.16384155]
[1765032786451,0.66,133.85,133.81,0.69]
[1765032787838,0.66,133.85,133.8,8.16384155]
[1765032788816,8.13109267,133.85,133.8,8.16384155]
[1765032789040,0.66,133.85,133.8,8.16384155]
[1765032789612,0.66,133.85,133.8,7.47384155]
[1765032789823,0.66,133.85,133.81,0.71]
[1765032790025,1e-08,133.86,133.81,0.71]